lending/lending_fUSD_20250819
["ID","MTS","AMOUNT","RATE_DAILY","PERIOD"]
[380282840,1755631686487,-400.0,0.00026287,30]
[380282841,1755631686571,-423.65,0.00026287,30]
[380282842,1755631686656,-451.11,0.00026287,30]
[380282843,1755631686738,-400.0,0.00026287,30]
[380282844,1755631686819,-400.0,0.00026287,30]
[380282845,1755631686900,-597.08,0.00026287,30]
[380282846,1755631686982,-1474.99,0.00026287,30]
[380282847,1755631687064,-1897.14,0.00026287,30]
[380282848,1755631687148,-2071.19,0.00026287,30]
[380282849,1755631687233,-1986.02,0.00026287,30]
[380282850,1755631687317,-1857.48,0.00026287,30]
[380282851,1755631687401,-1653.8,0.00026287,30]
[380282852,1755631687486,-911.85,0.00026287,30]
[380282853,1755631687567,-1758.09,0.00026287,30]
[380282854,1755631687649,-1521.0,0.00026287,30]
[380282855,1755631687732,-676.72,0.00026287,30]
[380282856,1755631687814,-2274.26,0.00026287,30]
[380282857,1755631687895,-1298.17,0.00026287,30]
[380282858,1755631687977,-613.1,0.00026287,30]
[380282859,1755631688062,-695.86,0.00026287,30]
[380282860,1755631688145,-1491.99,0.00026287,30]
[380282861,1755631688227,-1980.26,0.00026287,30]
[380282862,1755631688309,-400.25,0.00026287,30]
[380282863,1755631688392,-1577.29,0.00026287,30]
[380282864,1755631688477,-400.0,0.00026287,30]
[380282865,1755631688560,-400.0,0.00026287,30]
[380282866,1755631688642,-2002.7,0.00026287,30]
[380282867,1755631688724,-1266.16,0.00026287,30]
[380282868,1755631688805,-1366.49,0.00026287,30]
[380282869,1755631688884,-406.66,0.00026287,30]
[380282870,1755631688964,-508.05,0.00026287,30]
[380282871,1755631689045,-528.92,0.00026287,30]
[380282872,1755631689128,-1776.47,0.00026287,30]
[380282873,1755631689208,-2414.67,0.00026287,30]
[380282874,1755631689291,-2175.76,0.00026287,30]
[380282875,1755631689374,-2527.19,0.00026287,30]
[380282876,1755631689457,-2752.59,0.00026287,30]
[380282877,1755631689539,-400.0,0.00026287,30]
[380282878,1755631689622,-588.39,0.00026287,30]
[380282879,1755631689704,-1345.68,0.00026287,30]
[380282880,1755631689787,-824.04,0.00026287,30]
[380282881,1755631689870,-1251.07,0.00026287,30]
[380282882,1755631689953,-1948.12,0.00026287,30]
[380282883,1755631690040,-400.0,0.00026287,30]
[380282884,1755631690123,-2377.39,0.00026287,30]
[380282885,1755631690207,-2026.03,0.00026287,30]
[380282886,1755631690293,-2114.04,0.00026287,30]
[380282887,1755631690379,-400.0,0.00026287,30]
[380282888,1755631690466,-953.13,0.00026287,30]
[380282889,1755631690548,-849.78,0.00026287,30]
[380282890,1755631690630,-843.06,0.00026287,30]
[380282891,1755631690712,-728.87,0.00026287,30]
[380282892,1755631690793,-940.93,0.00026287,30]
[380282893,1755631690874,-400.0,0.00026287,30]
[380282894,1755631690957,-1596.52,0.00026287,30]
[380282895,1755631691039,-1905.5,0.00026287,30]
[380282896,1755631691123,-902.59,0.00026287,30]
[380282897,1755631691206,-362.29,0.00026287,30]
[380282898,1755631691290,-687.3,0.00026287,30]
[380282899,1755631691372,-2543.56,0.00026287,30]
[380282900,1755631691456,-400.0,0.00026287,30]
[380282901,1755631691538,-609.42,0.00026287,30]
[380282902,1755631691621,-1773.97,0.00026287,30]
[380282903,1755631691706,-1735.8,0.00026287,30]
[380282904,1755631691788,-1297.44,0.00026287,30]
[380282905,1755631691871,-1858.51,0.00026287,30]
[380282906,1755631691955,-1244.43,0.00026287,30]
[380282907,1755631692037,-805.88,0.00026287,30]
[380282908,1755631692122,-1784.43,0.00026287,30]
[380282909,1755631692207,-501.46,0.00026287,30]
[380282910,1755631692293,-1529.76,0.00026287,30]
[380282911,1755631692380,-672.98,0.00026287,30]
[380282912,1755631692466,-600.82,0.00026287,30]
[380282913,1755631692550,-1465.85,0.00026287,30]
[380282914,1755631692633,-1931.93,0.00026287,30]
[380282915,1755631692715,-2147.31,0.00026287,30]
[380282916,1755631692798,-1567.3,0.00026287,30]
[380282917,1755631692879,-2038.08,0.00026287,30]
[380282918,1755631692967,-1367.91,0.00026287,30]
[380282919,1755631693052,-400.0,0.00026287,30]
[380282920,1755631693140,-204.54095229,0.00026287,30]
[380282921,1755631693227,-1620.7,0.00026287,30]
[380282922,1755631693313,-2163.3,0.00026287,30]
[380282923,1755631693400,-845.95,0.00026287,30]
[380282924,1755631693485,-1692.55,0.00026287,30]
[380282925,1755631693568,-400.0,0.00026287,30]
[380282926,1755631693653,-2121.39,0.00026287,30]
[380282927,1755631693736,-1740.78,0.00026287,30]
[380282928,1755631693820,-429.43,0.00026287,30]
[380282929,1755631693903,-1828.54,0.00026287,30]
[380282930,1755631693988,-2012.79,0.00026287,30]
[380282931,1755631694076,-708.39,0.00026287,30]
[380282932,1755631694365,-2499.8,0.00026287,30]
[380282933,1755631694450,-1426.86,0.00026287,30]
[380282934,1755631694537,-664.56,0.00026287,30]
[380282935,1755631694621,-1463.09,0.00026287,30]
[380282936,1755631694706,-1913.73,0.00026287,30]
[380282937,1755631694789,-1552.03,0.00026287,30]
[380282938,1755631694875,-2436.61,0.00026287,30]
[380282939,1755631694964,-1392.77,0.00026287,30]
[380282940,1755631695047,-1000.0,0.00026287,30]
[380282941,1755631695129,-846.92,0.00026287,30]
[380282942,1755631695214,-1763.74,0.00026287,30]
[380282943,1755631695298,-400.0,0.00026287,30]
[380282944,1755631695384,-744.5,0.00026287,30]
[380282945,1755631695470,-1099.58,0.00026287,30]
[380282946,1755631695551,-665.76,0.00026287,30]
[380282947,1755631695635,-400.0,0.00026287,30]
[380282948,1755631695718,-1281.3,0.00026287,30]
[380282949,1755631695800,-400.0,0.00026287,30]
[380282950,1755631695883,-1252.4,0.00026287,30]
[380282951,1755631695968,-3616.11,0.00026287,30]
[380282952,1755631696054,-407.83,0.00026287,30]
[380282953,1755631696139,-1482.09,0.00026287,30]
[380282954,1755631696224,-1414.83,0.00026287,30]
[380282955,1755631696307,-2032.19,0.00026287,30]
[380282956,1755631696390,-400.0,0.00026287,30]
[380282957,1755631696474,-1578.98,0.00026287,30]
[380282958,1755631696558,-2398.45,0.00026287,30]
[380282959,1755631696642,-766.85,0.00026287,30]
[380282960,1755631696727,-1851.5,0.00026287,30]
[380282961,1755631696818,-1329.85,0.00026287,30]
[380282962,1755631696901,-400.0,0.00026287,30]
[380282963,1755631696984,-1371.61,0.00026287,30]
[380282964,1755631697069,-1402.72,0.00026287,30]
[380282965,1755631697153,-589.37,0.00026287,30]
[380282966,1755631697238,-400.0,0.00026287,30]
[380282967,1755631697325,-1582.32,0.00026287,30]
[380282968,1755631697412,-1558.06,0.00026287,30]
[380282969,1755631697501,-901.56,0.00026287,30]
[380282970,1755631697582,-1663.17,0.00026287,30]
[380282971,1755631697665,-400.0,0.00026287,30]
[380282972,1755631697747,-1613.79,0.00026287,30]
[380282973,1755631697831,-1045.63,0.00026287,30]
[380282974,1755631697912,-749.46,0.00026287,30]
[380282975,1755631697994,-1627.15,0.00026287,30]
[380282976,1755631698079,-609.27,0.00026287,30]
[380282977,1755631698164,-7059.23,0.00026287,30]
[380282978,1755631698250,-435.18,0.00026287,30]
[380282979,1755631698336,-400.0,0.00026287,30]
[380282980,1755631698425,-2089.62,0.00026287,30]
[380282981,1755631698519,-1260.34,0.00026287,30]
[380282982,1755631698607,-563.93,0.00026287,30]
[380282983,1755631698694,-1502.06,0.00026287,30]
[380282984,1755631698780,-400.0,0.00026287,30]
[380282985,1755631698866,-6403.8,0.00026287,30]
[380282986,1755631698957,-1985.34,0.00026287,30]
[380282987,1755631699042,-1048.51,0.00026287,30]
[380282988,1755631699132,-400.0,0.00026287,30]
[380282989,1755631699219,-400.0,0.00026287,30]
[380282990,1755631699304,-1399.36,0.00026287,30]
[380282991,1755631699388,-400.0,0.00026287,30]
[380282992,1755631699474,-400.0,0.00026287,30]
[380282993,1755631699556,-1781.2,0.00026287,30]
[380282994,1755631699639,-705.16,0.00026287,30]
[380282995,1755631699725,-681.02,0.00026287,30]
[380282996,1755631699808,-1740.19,0.00026287,30]
[380282997,1755631699889,-1383.16,0.00026287,30]
[380282998,1755631699972,-847.25,0.00026287,30]
[380282999,1755631700058,-1262.42,0.00026287,30]
[380283000,1755631700145,-2644.58,0.00026287,30]
[380283001,1755631700235,-1521.72,0.00026287,30]
[380283002,1755631700322,-408.62,0.00026287,30]
[380283003,1755631700408,-1779.17,0.00026287,30]
[380283004,1755631700492,-2168.42,0.00026287,30]
[380283005,1755631700574,-1178.75,0.00026287,30]
[380283006,1755631700655,-1810.97,0.00026287,30]
[380283007,1755631700738,-400.0,0.00026287,30]
[380283008,1755631700820,-616.31,0.00026287,30]
[380283009,1755631700901,-400.0,0.00026287,30]
[380283010,1755631700981,-437.3,0.00026287,30]
[380283011,1755631701065,-1396.52,0.00026287,30]
[380283012,1755631701148,-661.58,0.00026287,30]
[380283013,1755631701234,-900.37,0.00026287,30]
[380283014,1755631701322,-400.0,0.00026287,30]
[380283015,1755631701409,-524.58,0.00026287,30]
[380283016,1755631701495,-3238.02,0.00026287,30]
[380283017,1755631701580,-1029.85,0.00026287,30]
[380283018,1755631701664,-528.92,0.00026287,30]
[380283019,1755631701745,-1367.19,0.00026287,30]
[380283020,1755631701827,-400.0,0.00026287,30]
[380283021,1755631701910,-438.54,0.00026287,30]
[380283022,1755631701996,-1444.28,0.00026287,30]
[380283023,1755631702081,-1736.94,0.00026287,30]
[380283024,1755631702173,-2052.18,0.00026287,30]
[380283025,1755631702265,-1257.53,0.00026287,30]
[380283026,1755631702357,-400.0,0.00026287,30]
[380283027,1755631702447,-221.88,0.00026287,30]
[380283028,1755631702535,-1214.14,0.00026287,30]
[380283029,1755631702620,-809.42,0.00026287,30]
[380283030,1755631702704,-1942.42,0.00026287,30]
[380283031,1755631702788,-617.46,0.00026287,30]
[380283032,1755631702871,-1699.43,0.00026287,30]
[380283033,1755631702955,-400.0,0.00026287,30]
[380283034,1755631703037,-1369.92,0.00026287,30]
[380283035,1755631703121,-400.0,0.00026287,30]
[380283036,1755631703207,-2169.5,0.00026287,30]
[380283037,1755631703292,-1393.2,0.00026287,30]
[380283038,1755631703384,-823.8,0.00026287,30]
[380283039,1755631703477,-1784.2,0.00026287,30]
[380283040,1755631703562,-550.99,0.00026287,30]
[380283041,1755631703647,-1416.58,0.00026287,30]
[380283042,1755631703732,-1565.79,0.00026287,30]
[380283043,1755631703817,-1403.3,0.00026287,30]
[380283044,1755631703905,-642.58,0.00026287,30]
[380283045,1755631703998,-2128.32,0.00026287,30]
[380283046,1755631704085,-776.51,0.00026287,30]
[380283047,1755631704518,-544.15545363,0.00026287,30]
[380283048,1755631704607,-646.11,0.00026287,30]
[380283049,1755631704694,-1992.46,0.00026287,30]
[380283050,1755631704781,-942.07,0.00026287,30]
[380283051,1755631704869,-1398.76,0.00026287,30]
[380283052,1755631704961,-1374.85,0.00026287,30]
[380283053,1755631705051,-622.04,0.00026287,30]
[380283054,1755631705142,-400.0,0.00026287,30]
[380283055,1755631705232,-400.0,0.00026287,30]
[380283056,1755631705322,-400.0,0.00026287,30]
[380283057,1755631705411,-436.45,0.00026287,30]
[380283058,1755631705498,-500.0,0.00026302,30]
[380283059,1755631705586,-400.0,0.00026561,30]
[380283060,1755631705677,-400.0,0.00026561,30]
[380283061,1755631705764,-400.0,0.00026561,30]
[380283062,1755631705851,-400.0,0.00026561,30]
[380283063,1755631705938,-353.81272709,0.00026561,30]
[380283064,1755631706027,-400.0,0.00026561,30]
[380283065,1755631706115,-400.0,0.00026561,30]
[380283066,1755631706205,-297.91141459,0.00026561,30]
[380283067,1755631706296,-400.0,0.00026561,30]
[380283068,1755631706392,-400.0,0.00026561,30]
[380283069,1755631706478,-400.0,0.00026561,30]
[380283070,1755631706560,-211.53103291,0.00026561,30]
[380283071,1755631706644,-400.0,0.00026561,30]
[380283072,1755631706729,-1227.79,0.00026561,30]
[380283073,1755631706813,-400.0,0.00026561,30]
[380283074,1755631706894,-400.0,0.00026561,30]
[380283075,1755631706977,-400.0,0.00026561,30]
[380283076,1755631707056,-241.89437334,0.00026561,30]
[380283077,1755631707139,-400.0,0.00026561,30]
[380283078,1755631707222,-400.0,0.00026561,30]
[380283079,1755631707305,-400.0,0.00026561,30]
[380283080,1755631707391,-400.0,0.00026561,30]
[380283081,1755631707474,-177.6130212,0.00026561,30]
[380283082,1755631707557,-400.0,0.00026561,30]
[380283083,1755631707638,-585.37,0.00026561,30]
[380283084,1755631707718,-400.0,0.00026561,30]
[380283085,1755631707797,-990.17,0.00026561,30]
[380283086,1755631707887,-837.81,0.00026561,30]
[380283087,1755631707969,-684.54,0.00026561,30]
[380283088,1755631708051,-250.0,0.00026561,30]
[380283089,1755631708135,-916.66,0.00026561,30]
[380283090,1755631708218,-1962.6,0.00026561,30]
[380283091,1755631708300,-539.12,0.00026561,30]
[380283092,1755631708386,-400.0,0.00026561,30]
[380283093,1755631708470,-903.83,0.00026561,30]
[380283094,1755631708551,-1813.68,0.00026561,30]
[380283095,1755631708638,-666.94,0.00026561,30]
[380283096,1755631708745,-400.0,0.00026561,30]
[380283097,1755631708835,-400.0,0.00026561,30]
[380283098,1755631708919,-1217.67,0.00026561,30]
[380283099,1755631709001,-617.22,0.00026561,30]
[380283100,1755631709083,-513.15859196,0.00026561,30]
[380283101,1755631709166,-1451.41,0.00026561,30]
[380283102,1755631709251,-850.21,0.00026561,30]
[380283103,1755631709335,-400.0,0.00026561,30]
[380283104,1755631709421,-893.8,0.00026561,30]
[380283105,1755631709505,-400.0,0.00026561,30]
[380283106,1755631709589,-1524.91,0.00026561,30]
[380283107,1755631709673,-482.68825867,0.00026561,30]
[380283108,1755631709756,-1091.34,0.00026561,30]
[380283109,1755631709839,-1777.71,0.00026561,30]
[380283110,1755631709922,-1517.91,0.00026561,30]
[380283111,1755631710006,-737.73,0.00026561,30]
[380283112,1755631710089,-1092.33,0.00026561,30]
[380283113,1755631710173,-400.0,0.00026561,30]
[380283114,1755631710258,-1154.89,0.00026561,30]
[380283115,1755631710343,-1604.08,0.00026561,30]
[380283116,1755631710429,-400.0,0.00026561,30]
[380283117,1755631710514,-558.64,0.00026561,30]
[380283118,1755631710598,-464.91,0.00026561,30]
[380283119,1755631710682,-298.16905751,0.00026561,30]
[380283120,1755631710767,-400.0,0.00026561,30]
[380283121,1755631710852,-1174.54,0.00026561,30]
[380283122,1755631710933,-400.0,0.00026561,30]
[380283123,1755631711018,-400.0,0.00026561,30]
[380283124,1755631711117,-467.39,0.00026561,30]
[380283125,1755631711222,-645.33,0.00026561,30]
[380283126,1755631711309,-410.72,0.00026561,30]
[380283127,1755631711397,-400.0,0.00026561,30]
[380283128,1755631711485,-400.0,0.00026561,30]
[380283129,1755631711568,-591.41,0.00026561,30]
[380283130,1755631711651,-400.0,0.00026561,30]
[380283131,1755631711734,-1211.51,0.00026561,30]
[380283132,1755631711815,-657.43,0.00026561,30]
[380283133,1755631711899,-1321.19,0.00026561,30]
[380283134,1755631711981,-2333.41,0.00026561,30]
[380283135,1755631712063,-3141.86,0.00026561,30]
[380283136,1755631712145,-441.64,0.00026561,30]
[380283137,1755631712227,-610.43,0.00026561,30]
[380283138,1755631712310,-1312.21,0.00026561,30]
[380283139,1755631712397,-912.37,0.00026561,30]
[380283140,1755631712483,-542.11,0.00026561,30]
[380283141,1755631712565,-854.75,0.00026561,30]
[380283142,1755631712647,-582.29,0.00026561,30]
[380283143,1755631712730,-807.81,0.00026561,30]
[380283144,1755631712813,-722.51,0.00026561,30]
[380283145,1755631712893,-2108.39,0.00026561,30]
[380283146,1755631712974,-1028.43,0.00026561,30]
[380283147,1755631713059,-494.07,0.00026561,30]
[380283148,1755631713142,-1485.66,0.00026561,30]
[380283149,1755631713229,-400.0,0.00026561,30]
[380283150,1755631713317,-716.5,0.00026561,30]
[380283151,1755631713406,-400.0,0.00026561,30]
[380283152,1755631713493,-1382.11,0.00026561,30]
[380283153,1755631713578,-408.32,0.00026561,30]
[380283154,1755631713663,-812.97,0.00026561,30]
[380283155,1755631713746,-1007.53,0.00026561,30]
[380283156,1755631713828,-632.73,0.00026561,30]
[380283157,1755631713914,-744.53,0.00026561,30]
[380283158,1755631713996,-447.89,0.00026561,30]
[380283159,1755631714083,-1672.31,0.00026561,30]
[380283160,1755631714167,-1648.48,0.00026561,30]
[380283161,1755631714253,-1855.67,0.00026561,30]
[380283162,1755631714550,-1549.4,0.00026561,30]
[380283163,1755631714638,-549.35,0.00026561,30]
[380283164,1755631714723,-2521.93,0.00026561,30]
[380283165,1755631714806,-407.03,0.00026561,30]
[380283166,1755631714889,-1863.39,0.00026561,30]
[380283167,1755631714978,-867.04,0.00026561,30]
[380283168,1755631715066,-1625.91,0.00026561,30]
[380283169,1755631715156,-801.03,0.00026561,30]
[380283170,1755631715248,-1784.81,0.00026561,30]
[380283171,1755631715343,-1700.25,0.00026561,30]
[380283172,1755631715438,-834.13,0.00026561,30]
[380283173,1755631715530,-1018.63,0.00026561,30]
[380283174,1755631715619,-484.61,0.00026561,30]
[380283175,1755631715709,-400.0,0.00026561,30]
[380283176,1755631715797,-1460.04,0.00026561,30]
[380283177,1755631715884,-2527.74,0.00026561,30]
[380283178,1755631715969,-400.0,0.00026561,30]
[380283179,1755631716050,-1812.27,0.00026561,30]
[380283180,1755631716134,-1890.92,0.00026561,30]
[380283181,1755631716217,-400.0,0.00026561,30]
[380283182,1755631716299,-400.0,0.00026561,30]
[380283183,1755631716379,-400.0,0.00026561,30]
[380283184,1755631716464,-1775.43,0.00026561,30]
[380283187,1755631716545,-404.11373724,0.00026561,30]
[380283188,1755631716624,-1357.73,0.00026561,30]
[380283189,1755631716704,-1487.81,0.00026561,30]
[380283190,1755631716783,-400.0,0.00026561,30]
[380283191,1755631716873,-1146.31,0.00026561,30]
[380283192,1755631716954,-400.0,0.00026561,30]
[380283193,1755631717040,-1420.57,0.00026561,30]
[380283194,1755631717125,-2399.65,0.00026561,30]
[380283195,1755631717209,-400.0,0.00026561,30]
[380283196,1755631717293,-444.69,0.00026561,30]
[380283197,1755631717379,-713.75,0.00026561,30]
[380283198,1755631717459,-298.42786185,0.00026561,30]
[380283199,1755631717540,-4699.45,0.00026561,30]
[380283200,1755631717619,-840.72,0.00026561,30]
[380283201,1755631717699,-461.88219879,0.00026561,30]
[380283202,1755631717777,-630.29,0.00026561,30]
[380283203,1755631717855,-458.85,0.00026561,30]
[380283204,1755631717934,-1623.73,0.00026561,30]
[380283205,1755631718015,-1470.22,0.00026561,30]
[380283206,1755631718096,-1256.26,0.00026561,30]
[380283207,1755631718178,-581.67,0.00026561,30]
[380283208,1755631718261,-1449.63,0.00026561,30]
[380283209,1755631718342,-1569.5,0.00026561,30]
[380283210,1755631718432,-2257.43,0.00026561,30]
[380283211,1755631718510,-400.0,0.00026561,30]
[380283212,1755631718589,-1571.79,0.00026561,30]
[380283213,1755631718670,-304.93925036,0.00026561,30]
[380283214,1755631718749,-400.0,0.00026561,30]
[380283215,1755631718830,-1522.01,0.00026561,30]
[380283216,1755631718910,-584.13,0.00026561,30]
[380283217,1755631718991,-1158.37,0.00026561,30]
[380283218,1755631719074,-957.91,0.00026561,30]
[380283219,1755631719158,-2491.69,0.00026561,30]
[380283220,1755631719242,-2492.12,0.00026561,30]
[380283221,1755631719324,-524.3269205,0.00026561,30]
[380283222,1755631719404,-1980.77,0.00026561,30]
[380283223,1755631719486,-1928.22,0.00026561,30]
[380283224,1755631719565,-553.68,0.00026561,30]
[380283225,1755631719644,-400.0,0.00026561,30]
[380283226,1755631719725,-2354.42,0.00026561,30]
[380283227,1755631719808,-1644.87,0.00026561,30]
[380283228,1755631719889,-2216.05,0.00026561,30]
[380283229,1755631719972,-2825.62,0.00026561,30]
[380283230,1755631720055,-619.98,0.00026561,30]
[380283231,1755631720144,-651.62,0.00026561,30]
[380283232,1755631720230,-3485.03,0.00026561,30]
[380283233,1755631720317,-1412.21,0.00026561,30]
[380283234,1755631720401,-1725.57,0.00026561,30]
[380283235,1755631720484,-2140.32,0.00026561,30]
[380283236,1755631720565,-2069.46,0.00026561,30]
[380283237,1755631720648,-400.0,0.00026561,30]
[380283238,1755631720730,-400.0,0.00026561,30]
[380283239,1755631720812,-400.0,0.00026561,30]
[380283240,1755631720892,-1586.23,0.00026561,30]
[380283241,1755631720972,-2222.5,0.00026561,30]
[380283242,1755631721055,-400.0,0.00026561,30]
[380283243,1755631721136,-2119.53,0.00026561,30]
[380283244,1755631721222,-547.34,0.00026561,30]
[380283245,1755631721305,-1811.4,0.00026561,30]
[380283246,1755631721390,-1030.88,0.00026561,30]
[380283247,1755631721474,-1086.92,0.00026561,30]
[380283248,1755631721555,-868.92,0.00026561,30]
[380283249,1755631721636,-400.0,0.00026561,30]
[380283250,1755631721719,-423.65,0.00026561,30]
[380283251,1755631721798,-451.11,0.00026561,30]
[380283252,1755631721879,-400.0,0.00026561,30]
[380283253,1755631721958,-448.45238952,0.00026561,30]
[380283254,1755631722045,-597.08,0.00026561,30]
[380283255,1755631722131,-1474.99,0.00026561,30]
[380283256,1755631722215,-1897.14,0.00026561,30]
[380283257,1755631722299,-2071.19,0.00026561,30]
[380283258,1755631722386,-1986.02,0.00026561,30]
[380283259,1755631722472,-1857.48,0.00026561,30]
[380283260,1755631722556,-1653.8,0.00026561,30]
[380283261,1755631722642,-1758.09,0.00026561,30]
[380283262,1755631722736,-911.85,0.00026561,30]
[380283263,1755631722822,-1521.0,0.00026561,30]
[380283264,1755631722910,-676.72,0.00026561,30]
[380283265,1755631723010,-2274.26,0.00026561,30]
[380283266,1755631723093,-1298.17,0.00026561,30]
[380283267,1755631723182,-2011.88,0.00026561,30]
[380283268,1755631723267,-613.1,0.00026561,30]
[380283269,1755631723348,-695.86,0.00026561,30]
[380283270,1755631723428,-1491.99,0.00026561,30]
[380283271,1755631723509,-1980.26,0.00026561,30]
[380283272,1755631723588,-400.25,0.00026561,30]
[380283273,1755631723668,-1577.29,0.00026561,30]
[380283274,1755631723750,-400.0,0.00026561,30]
[380283275,1755631723830,-400.0,0.00026561,30]
[380283276,1755631723910,-2002.7,0.00026561,30]
[380283277,1755631723991,-1266.16,0.00026561,30]
[380283278,1755631724076,-1366.49,0.00026561,30]
[380283279,1755631724548,-406.66,0.00026561,30]
[380283280,1755631724660,-508.05,0.00026561,30]
[380283281,1755631724742,-1776.47,0.00026561,30]
[380283282,1755631724822,-528.92,0.00026561,30]
[380283283,1755631724903,-2414.67,0.00026561,30]
[380283284,1755631724996,-2175.76,0.00026561,30]
[380283285,1755631725081,-2527.19,0.00026561,30]
[380283286,1755631725165,-2752.59,0.00026561,30]
[380283287,1755631725250,-400.0,0.00026561,30]
[380283288,1755631725336,-588.39,0.00026561,30]
[380283289,1755631725419,-1345.68,0.00026561,30]
[380283290,1755631725503,-824.04,0.00026561,30]
[380283291,1755631725587,-1251.07,0.00026561,30]
[380283292,1755631725667,-1948.12,0.00026561,30]
[380283293,1755631725749,-400.0,0.00026561,30]
[380283294,1755631725829,-2377.39,0.00026561,30]
[380283295,1755631725909,-2026.03,0.00026561,30]
[380283296,1755631725989,-2114.04,0.00026561,30]
[380283297,1755631726071,-400.0,0.00026561,30]
[380283298,1755631726152,-953.13,0.00026561,30]
[380283299,1755631726238,-849.78,0.00026561,30]
[380283300,1755631726324,-843.06,0.00026561,30]
[380283301,1755631726405,-728.87,0.00026561,30]
[380283302,1755631726487,-940.93,0.00026561,30]
[380283303,1755631726566,-400.0,0.00026561,30]
[380283304,1755631726642,-1596.52,0.00026561,30]
[380283305,1755631726718,-1905.5,0.00026561,30]
[380283306,1755631726793,-902.59,0.00026561,30]
[380283307,1755631726867,-362.29,0.00026561,30]
[380283308,1755631726945,-687.3,0.00026561,30]
[380283309,1755631727024,-2543.56,0.00026561,30]
[380283310,1755631727106,-400.0,0.00026561,30]
[380283311,1755631727184,-609.42,0.00026561,30]
[380283312,1755631727265,-1182.45968603,0.00026561,30]
[380283313,1755631753404,250.0,8.192e-05,2]
[380283314,1755631799307,500.0,9.011e-05,2]
[380283594,1755631839868,2147.66,9.388e-05,2]
[380283867,1755631900708,-1200.0,9.584e-05,2]
[380283868,1755631900719,-458.43483364,9.587e-05,2]
[380283869,1755631900728,-475.92,9.74e-05,2]
[380283870,1755631900738,-1000.0,9.812e-05,2]
[380283871,1755631900748,-700.58,9.826e-05,2]
[380283872,1755631900757,-170.0,9.836e-05,7]
[380283873,1755631900768,-2346.36,9.857e-05,2]
[380283874,1755631900776,-7051.49022767,0.0001,2]
[380283875,1755631900788,-672.28934625,0.0001,2]
[380283876,1755631900797,-1746.17715371,0.00010136,2]
[380283877,1755631900806,-378.0,0.00010156,2]
[380283878,1755631900815,-3000.0,0.00010214,2]
[380283879,1755631900825,-1034.0,0.00010542,2]
[380283880,1755631900834,-212.02104404,0.0001074,2]
[380283881,1755631900844,-843.87140665,0.0001074,2]
[380283882,1755631900855,-160.0,0.0001074,2]
[380283883,1755631900865,-710.20436844,0.0001078,2]
[380283884,1755631900874,-400.09874291,0.00010899,2]
[380283885,1755631900883,-5000.0,0.000109,2]
[380283886,1755631900892,-625.0,0.000109,2]
[380283887,1755631900901,-625.0,0.000109,2]
[380283888,1755631900910,-2876.66828263,0.00010914,2]
[380283889,1755631900919,-5650.22499523,0.00010917,2]
[380283890,1755631900931,-1370.0,0.00010917,2]
[380283891,1755631901224,-4645.14053231,0.00010917,2]
[380283892,1755631901261,-16783.62373587,0.00010917,2]